bitfinex/quotes_ETHUSD_20250821
["timestamp","ask_amount","ask_price","bid_price","bid_amount"]
[1755795086491,0.002,4232.9,4232.7,7.37667547]
[1755795086665,0.1384,4232.8,4232.7,7.37667547]
[1755795087183,0.1384,4232.8,4232.7,7.66917547]
[1755795087386,0.1384,4232.8,4232.7,3.17967547]
[1755795087387,0.02,4232.8,4232.7,3.17967547]
[1755795087693,0.02,4232.8,4232.3,4.196]
[1755795087694,0.7594,4232.8,4232.3,4.196]
[1755795087858,0.1184,4232.5,4232.3,4.196]
[1755795088051,0.7374,4232.4,4232.3,4.196]
[1755795088251,0.7374,4232.4,4231.6,0.1184]
[1755795088463,0.3036,4232.4,4231.6,0.1184]
[1755795088889,0.1184,4231.7,4231.4,4.196]
[1755795089204,0.1184,4231.7,4231.5,3.0]
[1755795089424,0.4558,4232.8,4231.5,3.0]
[1755795089555,0.1184,4231.9,4231.6,0.2925]
[1755795089973,0.3036,4231.7,4231.5,4.196]
[1755795090185,0.1184,4231.6,4231.5,4.196]
[1755795090384,0.422,4231.6,4231.5,4.196]
[1755795090580,0.1184,4231.6,4231.5,4.196]
[1755795091174,0.422,4231.6,4231.5,4.196]
[1755795092099,0.422,4231.6,4231.3,0.001]
[1755795092100,0.8558,4231.6,4231.3,0.001]
[1755795092261,0.4338,4231.5,4231.3,0.001]
[1755795092456,0.3036,4231.4,4231.3,0.001]
[1755795092796,0.7374,4231.4,4231.3,0.001]
[1755795093762,1.817,4232.4,4231.3,0.2935]
[1755795094111,0.4338,4232.5,4231.4,4.196]
[1755795094305,0.022,4232.8,4231.5,3.0]
[1755795094459,0.4338,4232.7,4231.3,1.818]
[1755795094659,0.4338,4232.7,4231.5,3.0]
[1755795094884,0.1184,4231.8,4231.5,3.0]
[1755795095282,0.1184,4231.8,4231.4,4.196]
[1755795095682,0.4338,4232.3,4231.5,4.196]
[1755795095879,0.1184,4231.6,4231.5,4.196]
[1755795096275,0.1184,4231.6,4231.5,7.51213228]
[1755795096463,0.1184,4231.6,4231.5,7.4885]
[1755795097287,0.1184,4231.6,4231.5,7.196]
[1755795097508,0.022,4232.8,4231.6,3.0]
[1755795097673,0.1184,4232.0,4231.9,2.36300479]
[1755795097876,0.1184,4232.1,4232.0,3.0]
[1755795098491,0.4218,4232.1,4232.0,4.196]
[1755795098697,0.4218,4232.1,4231.9,4.196]
[1755795098862,0.3034,4232.1,4232.0,3.0]
[1755795099310,0.4218,4232.1,4232.0,3.0]
[1755795099867,0.1184,4232.1,4231.9,4.196]
[1755795100370,0.1184,4232.1,4232.0,3.32302948]
[1755795100602,0.1184,4232.1,4232.0,3.7734]
[1755795100891,0.022,4232.8,4232.0,0.2994]
[1755795101094,0.1184,4232.1,4232.0,0.2994]
[1755795101478,0.1184,4232.1,4232.0,6.13634896]
[1755795101672,0.1184,4232.6,4232.1,5.36289312]
[1755795101883,0.1184,4232.6,4232.5,0.2994]
[1755795102079,0.1184,4232.6,4232.5,4.4944]
[1755795102899,0.022,4232.8,4232.7,3.02255817]
[1755795103076,0.022,4232.8,4232.7,6.32195817]
[1755795103461,0.022,4232.8,4232.7,6.79595817]
[1755795103889,0.022,4232.8,4232.7,3.7734]
[1755795104200,0.022,4232.8,4231.1,9.48342975]
[1755795104201,0.7541,4232.8,4231.5,1.818]
[1755795104377,0.7541,4232.8,4231.6,4.195]
[1755795105289,0.3254,4232.8,4231.6,4.195]
[1755795105489,0.3254,4232.8,4231.7,0.02363116]
[1755795105715,0.3254,4232.8,4231.9,2.36298757]
[1755795105892,0.3254,4232.8,4232.0,4.195]
[1755795106292,0.002,4232.4,4232.0,4.195]
[1755795108601,0.002,4232.4,4232.1,3.02362893]
[1755795108803,0.002,4232.4,4232.3,0.2994]
[1755795109003,0.002,4232.4,4232.3,4.4934]
[1755795109301,0.002,4232.4,4232.3,12.83080927]
[1755795109472,0.002,4232.4,4232.3,12.14718146]
[1755795109673,0.002,4232.4,4232.3,12.80718146]
[1755795110083,0.002,4232.4,4232.3,6.011]
[1755795110617,0.002,4232.4,4232.3,6.3104]
[1755795110977,0.002,4232.4,4232.3,6.7844]
[1755795111169,0.002,4232.4,4232.3,9.7844]
[1755795111371,0.002,4232.4,4232.3,12.80718146]
[1755795112431,0.002,4232.4,4232.3,12.33318146]
[1755795112573,0.4287,4235.4,4233.6,16.98434412]
[1755795112916,0.4307,4235.7,4234.2,0.66]
[1755795113121,0.002,4235.7,4234.3,10.51506544]
[1755795113317,0.4287,4235.6,4234.3,6.32106544]
[1755795113500,0.4287,4235.6,4234.3,10.51506544]
[1755795113819,0.4287,4235.6,4234.3,10.98906544]
[1755795114178,0.1184,4235.1,4234.3,11.10746544]
[1755795115082,0.002,4235.7,4234.3,11.10746544]
[1755795115281,0.1204,4235.3,4234.3,11.10746544]
[1755795116707,0.002,4235.3,4234.7,3.02144236]
[1755795117009,0.002,4235.3,4235.2,16.98345177]
[1755795117212,0.002,4235.3,4235.2,21.59325177]
[1755795117506,0.002,4235.3,4235.2,3.0]
[1755795117679,0.002,4235.3,4235.2,7.192]
[1755795117878,0.002,4235.3,4235.2,3.0]
[1755795118121,0.002,4235.3,4235.2,7.192]
[1755795119095,0.002,4235.3,4235.2,20.81485177]
[1755795119610,0.002,4235.3,4235.2,21.94885177]
[1755795119815,0.002,4235.3,4235.2,18.93268819]
[1755795120028,0.002,4235.3,4235.2,18.27268819]
[1755795120179,0.3054,4235.3,4235.2,3.0]
[1755795120514,0.8525,4235.3,4235.2,4.191]
[1755795121015,0.8525,4235.3,4234.7,1.817]
[1755795121314,0.1184,4234.8,4234.7,1.817]
[1755795121523,0.8505,4234.8,4233.9,0.1184]
[1755795121815,0.8505,4234.8,4234.0,6.008]
[1755795121816,0.4287,4234.7,4234.0,6.008]
[1755795121973,0.3034,4234.1,4234.0,4.191]
[1755795122176,0.8505,4234.1,4234.0,4.191]
[1755795122412,0.1184,4234.1,4234.0,4.191]
[1755795122602,0.4287,4235.1,4234.0,4.4904]
[1755795122781,0.1184,4234.4,4234.0,4.191]
[1755795124021,0.002,4235.3,4233.8,1.817]
[1755795124022,0.4218,4234.1,4233.8,1.817]
[1755795124317,0.4218,4234.1,4233.9,7.19]
[1755795124318,0.1184,4234.1,4233.9,7.19]
[1755795124504,0.1184,4234.1,4234.0,3.0]
[1755795124705,0.002,4235.3,4234.0,1.45701832]
[1755795124885,0.002,4235.3,4235.0,3.0]
[1755795125207,0.1204,4235.3,4235.1,6.006]
[1755795125728,0.1204,4235.3,4235.1,1.816]
[1755795126104,0.1204,4235.3,4235.2,4.19]
[1755795126407,0.1204,4235.3,4235.2,4.21361163]
[1755795126614,0.1204,4235.3,4235.2,6.87417521]
[1755795126775,0.002,4235.3,4235.2,10.98456358]
[1755795127484,0.002,4235.3,4235.2,10.51056358]
[1755795127684,0.002,4235.3,4235.2,3.0]
[1755795127911,0.002,4235.3,4235.2,7.19]
[1755795128110,0.0059,4235.3,4235.2,7.19]
[1755795128300,0.0059,4235.3,4235.2,9.55116358]
[1755795128301,0.002,4235.3,4235.2,9.55116358]
[1755795128617,0.002,4235.3,4235.2,7.19]
[1755795128803,0.002,4235.3,4235.2,3.0]
[1755795129003,0.002,4235.3,4235.2,7.19]
[1755795129714,0.3894,4235.3,4235.2,4.19]
[1755795130593,0.3894,4235.3,4235.1,1.816]
[1755795130817,0.3894,4235.3,4235.2,4.19]
[1755795131614,0.0059,4235.3,4235.2,4.19]
[1755795131818,0.4435,4235.3,4235.2,4.19]
[1755795132183,0.4435,4235.3,4235.1,1.816]
[1755795132387,0.0059,4235.3,4235.2,4.189]
[1755795132797,0.0059,4235.3,4235.1,1.816]
[1755795132996,0.4376,4235.2,4235.1,1.816]
[1755795133196,0.3144,4235.2,4235.1,6.005]
[1755795133515,0.002,4235.3,4235.1,6.005]
[1755795134087,0.3144,4235.2,4234.3,0.17368656]
[1755795134290,0.4376,4235.1,4234.4,4.189]
[1755795134483,0.3144,4234.5,4234.4,4.189]
[1755795134690,0.752,4234.5,4234.2,4.189]
[1755795134886,0.752,4234.5,4233.8,0.02]
[1755795134887,0.4376,4234.4,4233.8,0.02]
[1755795135196,0.4376,4234.4,4233.9,4.189]
[1755795135527,0.3144,4234.0,4233.9,4.189]
[1755795135819,0.3144,4234.0,4233.8,0.02]
[1755795135820,0.752,4234.0,4233.8,0.02]
[1755795136225,0.4376,4233.9,4233.8,0.02]
[1755795136390,0.752,4233.9,4233.8,0.02]
[1755795137093,0.8704,4233.9,4233.8,0.02]
[1755795138493,0.4328,4233.9,4233.8,0.02]
[1755795138689,0.1184,4233.9,4233.8,0.02]
[1755795138924,0.4328,4233.9,4233.8,0.02]
[1755795139090,0.8704,4233.9,4233.8,0.02]
[1755795140009,0.8704,4233.9,4233.8,0.021]
[1755795140801,3.8704,4233.9,4233.8,0.021]
[1755795140995,4.43914,4233.9,4233.8,0.021]
[1755795141196,0.8704,4233.9,4233.8,0.021]
[1755795141397,0.1184,4233.9,4233.8,0.021]
[1755795141592,0.4328,4233.9,4233.8,0.021]
[1755795142520,0.8704,4233.9,4233.8,0.021]
[1755795143534,0.1184,4233.9,4233.8,0.021]
[1755795144528,0.8704,4233.9,4233.8,0.021]
[1755795145320,0.4328,4233.9,4233.8,0.021]
[1755795145666,0.1184,4233.9,4233.8,0.021]
[1755795145820,0.8704,4233.9,4233.8,0.021]
[1755795147527,0.4328,4233.9,4233.8,0.021]
[1755795147748,0.1184,4233.9,4233.8,0.021]
[1755795149930,0.1184,4233.9,4233.8,0.3094]
[1755795150157,0.1184,4233.9,4233.8,0.7619]
[1755795150342,0.002,4234.5,4233.8,0.7619]
[1755795150531,0.1184,4234.1,4233.8,0.021]
[1755795151233,0.1184,4234.1,4234.0,0.2884]
[1755795151431,0.1184,4234.1,4234.0,0.7409]
[1755795151783,0.002,4234.5,4234.0,3.7409]
[1755795152057,0.002,4234.5,4234.4,2.36160967]
[1755795152219,0.002,4234.5,4234.4,3.2884]
[1755795152423,0.1204,4234.5,4234.4,3.2884]
[1755795152654,0.1204,4234.5,4234.4,3.7409]
[1755795153070,0.1204,4234.5,4234.4,3.2884]
[1755795153371,0.1204,4234.5,4233.9,0.4525]
[1755795153658,0.1204,4234.5,4234.2,3.0]
[1755795153823,0.002,4234.5,4233.8,1.838]
[1755795154019,0.1184,4233.9,4233.8,1.838]
[1755795154233,0.1184,4233.9,4233.8,0.021]
[1755795155060,0.1184,4233.9,4233.8,0.7619]
[1755795155431,0.002,4234.5,4234.0,2.361798]
[1755795155771,0.002,4234.5,4233.9,3.0]
[1755795155772,0.002,4234.5,4234.4,2.36160967]
[1755795155961,0.002,4234.5,4234.4,3.2884]
[1755795156160,0.1204,4234.5,4234.4,3.2884]
[1755795156364,0.002,4234.5,4234.4,3.76451609]
[1755795156540,0.002,4234.5,4234.4,3.7409]
[1755795156740,0.002,4234.5,4234.4,7.189]
[1755795157762,0.002,4234.5,4234.4,7.4945]
[1755795157960,0.002,4234.5,4234.4,7.9295]
[1755795158254,0.002,4234.5,4234.4,7.189]
[1755795158960,0.002,4234.5,4234.4,7.4945]
[1755795159876,0.002,4234.5,4234.4,4.189]
[1755795160078,0.002,4234.5,4234.1,1.818]
[1755795160286,0.002,4234.5,4234.3,4.188]
[1755795160453,0.002,4234.5,4234.3,7.188]
[1755795160454,0.1184,4234.4,4234.3,7.188]
[1755795160651,0.1184,4234.4,4234.3,7.4935]
[1755795160849,0.1184,4234.4,4234.3,4.188]
[1755795161765,0.1184,4234.4,4234.3,4.21161665]
[1755795162052,0.1184,4234.4,4234.3,4.9285]
[1755795162245,0.1184,4234.4,4234.3,7.29016544]
[1755795162446,0.002,4234.5,4234.4,5.36160967]
[1755795162649,0.002,4234.5,4234.4,6.10210967]
[1755795162848,0.002,4234.5,4234.4,6.76210967]
[1755795163584,0.002,4234.5,4234.4,6.88050967]
[1755795166561,1e-08,4234.5,4234.4,6.88050967]
[1755795166773,0.002,4235.0,4234.9,6.02133084]
[1755795167082,0.002,4235.0,4234.9,12.32983084]
[1755795167287,0.002,4235.0,4234.9,12.88323084]
[1755795167853,0.002,4235.0,4234.9,12.99869578]
[1755795169189,0.002,4235.0,4234.9,8.81169578]
[1755795169352,0.002,4235.0,4234.9,12.99869578]
[1755795170806,0.002,4235.0,4234.9,13.27391369]
[1755795170975,0.002,4235.3,4235.2,18.26082321]
[1755795171290,0.002,4235.3,4235.2,25.87072321]
[1755795171589,0.002,4235.3,4235.2,26.30572321]
[1755795171771,0.002,4235.7,4235.6,0.66]
[1755795171976,0.02,4236.8,4235.7,2.36088485]
[1755795172198,0.02,4236.8,4236.7,2.36032761]
[1755795172397,0.02,4236.8,4236.7,12.35143088]
[1755795172595,0.002,4238.3,4237.7,3.01977063]
[1755795172772,0.002,4238.3,4237.7,12.32727063]
[1755795173283,0.002,4238.3,4237.7,12.87987063]
[1755795173879,1e-08,4237.8,4237.7,12.87987063]
[1755795174395,1e-08,4237.8,4237.7,19.82033303]
[1755795174581,1e-08,4237.8,4237.7,24.00533303]
[1755795176624,1e-08,4237.8,4237.7,8.8686734]
[1755795176774,1e-08,4237.8,4237.7,12.6186734]
[1755795177282,1e-08,4237.8,4237.7,12.6176734]
[1755795177502,1e-08,4237.8,4237.7,13.0526734]
[1755795177706,1e-08,4237.8,4237.7,8.8686734]
[1755795177921,1e-08,4237.8,4237.7,5.76840277]
[1755795178086,1e-08,4237.8,4237.7,2.10840277]
[1755795178285,1e-08,4237.8,4237.7,8.6747711]
[1755795178485,1e-08,4237.8,4237.7,9.6166734]
[1755795178812,1e-08,4237.8,4237.7,12.3111734]
[1755795179574,1e-08,4237.8,4237.7,9.95140277]
[1755795179778,1e-08,4237.8,4237.7,9.29140277]
[1755795179979,1e-08,4237.8,4237.7,9.95140277]
[1755795180178,1e-08,4237.8,4237.7,5.76840277]
[1755795180376,0.75010001,4237.8,4237.7,9.29140277]
[1755795180580,0.75010001,4237.8,4237.7,5.10840277]
[1755795180781,1e-08,4237.8,4237.7,9.29140277]
[1755795181041,1e-08,4237.8,4237.7,12.3111734]
[1755795181386,1e-08,4237.8,4237.7,12.6166734]
[1755795181608,1e-08,4237.8,4237.7,13.0516734]
[1755795181779,1e-08,4237.8,4237.7,12.3111734]
[1755795181986,1e-08,4237.8,4237.7,9.95040277]
[1755795182231,1e-08,4237.8,4237.7,12.3101734]
[1755795182384,1e-08,4237.8,4237.7,9.95040277]
[1755795182778,0.75010001,4237.8,4237.7,9.17280277]
[1755795183620,0.28560001,4237.8,4237.7,9.17280277]
[1755795183834,1e-08,4237.8,4237.7,11.5325734]
[1755795184318,1e-08,4237.8,4237.7,12.3101734]
[1755795184487,0.28560001,4237.8,4237.7,9.95040277]
[1755795184688,0.75010001,4237.8,4237.7,9.29040277]
[1755795185304,0.28560001,4237.8,4237.7,9.29040277]
[1755795185828,0.28305384,4237.8,4237.7,9.29040277]
[1755795186023,0.002,4238.3,4237.8,3.66]
[1755795186325,0.4665,4238.3,4237.7,2.10840277]
[1755795186531,0.2856,4237.8,4237.7,1.99080277]
[1755795186848,0.7501,4237.8,4237.7,0.17480277]
[1755795187144,0.8677,4237.8,4237.7,4.181]
[1755795187742,0.4032,4237.8,4237.7,4.181]
[1755795187920,0.2856,4237.8,4237.7,4.181]
[1755795188135,0.7182,4237.8,4237.7,4.181]
[1755795188342,0.8358,4237.8,4237.7,4.181]
[1755795189732,0.4032,4237.8,4237.7,4.181]
[1755795190028,0.8358,4237.8,4237.7,4.181]
[1755795190605,0.8378,4237.8,4237.7,4.181]
[1755795191502,0.1196,4237.8,4237.7,4.181]
[1755795191730,0.1196,4237.8,4237.7,4.2045977]
[1755795192234,0.002,4237.8,4237.7,4.181]
[1755795192809,0.7223,4237.8,4237.7,4.181]
[1755795193135,0.002,4237.8,4237.7,4.181]
[1755795193934,0.7223,4237.8,4237.7,4.181]
[1755795194131,0.8399,4237.8,4237.3,0.17969309]
[1755795194333,0.4073,4237.8,4237.4,4.181]
[1755795194535,0.4326,4237.7,4237.4,4.181]
[1755795194738,0.1196,4237.8,4237.4,4.181]
[1755795194940,0.2877,4237.5,4237.4,4.181]
[1755795195236,0.1196,4237.8,4237.4,4.181]
[1755795196438,0.2877,4237.5,4237.4,4.181]
[1755795196837,0.7203,4237.5,4237.3,0.17969309]
[1755795197141,0.4326,4237.4,4237.2,0.1184]
[1755795197349,0.2877,4237.3,4236.9,4.18]
[1755795197705,0.1184,4237.0,4236.9,4.18]
[1755795197901,0.8387,4237.0,4236.9,4.18]
[1755795199208,0.4061,4237.0,4236.9,4.35288607]
[1755795199411,0.1184,4237.0,4236.9,4.35288607]
[1755795200540,0.1184,4237.0,4236.9,7.05030442]
[1755795200738,0.1176,4237.6,4237.1,2.36010478]
[1755795201037,0.1176,4237.6,4237.2,4.20360049]
[1755795201336,0.1176,4237.6,4237.3,1.815]
[1755795201517,0.1176,4237.6,4237.5,2.673482]
[1755795201709,0.002,4237.8,4237.7,2.35977063]
[1755795201909,0.002,4237.8,4237.7,0.0235977]
[1755795202658,0.002,4237.8,4237.7,2.38336833]
[1755795202818,0.002,4237.8,4237.7,3.83056833]
[1755795203138,0.002,4237.8,4237.7,20.60434817]
[1755795203356,0.002,4238.7,4238.2,3.01949223]
[1755795203544,0.002,4238.7,4238.2,12.35068715]
[1755795203718,0.002,4238.7,4238.2,12.44469223]
[1755795204056,0.002,4238.7,4238.6,6.01926957]
[1755795204269,0.002,4238.7,4238.6,10.51186957]
[1755795204469,0.002,4238.7,4238.6,10.98546957]
[1755795204757,0.002,4238.7,4238.6,11.10306957]
[1755795206519,1e-08,4239.3,4239.2,3.01893564]
[1755795206721,1e-08,4239.3,4239.2,12.35012499]
[1755795206920,1e-08,4239.3,4239.2,13.0354656]
[1755795207221,1e-08,4239.3,4239.2,12.91773564]
[1755795207418,1e-08,4239.3,4239.2,12.91673564]
[1755795207614,1e-08,4239.3,4239.2,6.08108263]
[1755795207949,1e-08,4239.3,4239.2,9.94548263]
[1755795208270,1.815,4241.3,4239.4,0.66]
[1755795208470,0.1176,4240.1,4239.5,4.178]
[1755795208618,0.001,4239.6,4239.5,7.178]
[1755795208819,0.001,4239.6,4239.5,7.2956]
[1755795209317,0.2877,4239.6,4239.5,0.1176]
[1755795209615,0.4053,4239.6,4239.5,4.178]
[1755795210118,0.8018,4239.6,4239.5,4.178]
[1755795210760,0.8018,4239.6,4238.6,0.1176]
[1755795210928,0.3965,4239.5,4238.7,4.177]
[1755795211270,0.4053,4238.8,4238.7,4.177]
[1755795211745,0.8018,4238.8,4238.7,4.177]
[1755795212564,0.1176,4238.8,4238.7,4.177]
[1755795212722,0.1176,4239.0,4238.7,4.177]
[1755795212926,0.1176,4239.0,4238.7,6.53620674]
[1755795213123,0.1176,4239.0,4238.7,4.177]
[1755795213370,0.1176,4239.2,4238.8,0.02359158]
[1755795213656,0.1176,4239.2,4239.0,2.35900152]
[1755795213950,1.75513167,4241.6,4238.9,4.176]
[1755795213951,0.4326,4240.6,4239.1,0.99718991]
[1755795214164,0.1176,4239.8,4239.3,0.66]
[1755795214323,0.1176,4240.1,4239.5,0.1176]
[1755795214650,0.1176,4240.1,4239.6,4.19958713]
[1755795215055,0.02,4239.8,4239.7,0.4736]
[1755795215253,0.02,4239.8,4239.7,0.7872]
[1755795215429,0.02,4239.8,4239.7,4.5648]
[1755795216835,0.02,4239.8,4239.7,4.58838657]
[1755795217038,0.02,4239.8,4239.7,4.5648]
[1755795217646,0.02,4239.8,4239.7,4.58838657]
[1755795217835,0.02,4239.8,4239.7,4.5648]
[1755795219229,0.02,4239.8,4239.7,5.7398]
[1755795220850,0.02,4239.8,4239.7,0.7776]
[1755795221164,0.3175,4239.8,4239.7,0.1176]
[1755795221344,0.3175,4239.8,4239.7,7.2926]
[1755795221539,0.7042,4239.8,4239.7,4.2926]
[1755795221746,0.3175,4239.8,4239.7,4.2926]
[1755795222733,0.02,4239.8,4239.7,4.5994]
[1755795223080,0.02,4239.8,4239.7,5.28298657]
[1755795223294,0.02,4239.8,4239.7,8.2594]
[1755795224076,0.02,4239.8,4239.7,7.2916]
[1755795224863,0.3175,4239.8,4239.7,7.2916]
[1755795225065,0.02,4239.8,4239.7,7.2916]
[1755795225572,0.2428,4239.8,4239.7,4.2906]
[1755795225740,0.02,4239.8,4239.7,4.2906]
[1755795225937,0.02,4239.8,4239.7,4.62098657]
[1755795226262,0.02,4239.8,4239.7,8.7318]
[1755795228514,0.02,4239.8,4239.7,7.2906]
[1755795228842,0.02,4239.8,4239.7,8.7318]
[1755795232575,0.02,4239.8,4239.7,8.2574]
[1755795233182,0.02,4239.8,4239.7,7.9506]
[1755795233478,0.2429,4239.8,4239.7,4.2906]
[1755795234182,0.7035,4239.8,4239.0,0.012]
[1755795234361,0.8211,4239.8,4239.6,1.814]
[1755795234564,0.3605,4239.8,4239.7,4.171]
[1755795235253,3.18323963,4239.8,4239.6,1.814]
[1755795235477,2.72263963,4239.8,4239.7,4.171]
[1755795235672,0.2429,4239.8,4239.7,4.171]
[1755795235892,0.3605,4239.8,4239.7,4.171]
[1755795236111,0.8211,4239.8,4239.7,4.171]
[1755795237169,0.8211,4239.8,4239.7,4.172]
[1755795237369,0.8211,4239.8,4239.6,1.814]
[1755795237697,1.17976204,4239.8,4239.6,1.814]
[1755795237898,1.17976204,4239.8,4239.7,4.171]
[1755795238101,1.64276204,4239.8,4239.7,4.171]
[1755795238484,0.8235,4239.8,4239.7,4.171]
[1755795238704,0.8235,4239.8,4239.6,1.814]
[1755795238872,0.3605,4239.8,4239.7,4.171]
[1755795239569,0.8235,4239.8,4239.7,4.171]
[1755795240172,0.7035,4239.8,4239.7,4.171]
[1755795240372,0.2405,4239.8,4239.7,4.171]
[1755795240724,75.0,4240.1,4239.7,4.4778]
[1755795240930,75.0,4240.1,4239.8,0.49798601]
[1755795241131,75.0,4240.1,4239.9,4.6454]
[1755795241279,75.0,4240.1,4239.6,1.826]
[1755795241280,0.2975,4240.0,4239.7,0.1176]
[1755795241485,75.0,4240.1,4239.9,0.3068]
[1755795241785,75.0,4240.1,4240.0,0.4744]
[1755795242018,75.0,4240.1,4240.0,4.171]
[1755795243307,75.1239,4240.1,4240.0,4.17]
[1755795243897,75.1239,4240.1,4239.7,0.1176]
[1755795244223,75.0,4240.1,4239.8,4.17]
[1755795244539,75.0,4240.1,4239.7,0.1176]
[1755795244540,75.0,4240.1,4239.9,4.17]
[1755795244839,75.0,4240.1,4240.0,4.17]
[1755795245128,75.0,4240.1,4239.7,0.1176]
[1755795245329,75.0,4240.1,4239.8,4.17]
[1755795245493,75.0,4240.1,4239.8,4.6444]
[1755795245702,75.0,4240.1,4239.8,4.17]
[1755795245884,75.0,4240.1,4239.8,4.6444]
[1755795246296,75.0,4240.1,4239.7,0.1176]
[1755795246491,75.0,4240.1,4239.8,4.17]
[1755795246695,75.0,4240.1,4239.7,0.1176]
[1755795246696,0.2975,4239.9,4239.6,1.814]
[1755795246905,0.1176,4240.0,4239.8,0.3068]
[1755795247125,75.0,4240.1,4239.8,0.3068]
[1755795247512,0.1239,4239.9,4239.6,1.814]
[1755795248138,0.1176,4239.7,4239.6,1.814]
[1755795248335,0.7014,4239.7,4239.6,1.814]
[1755795248841,0.7014,4239.7,4239.3,4.169]
[1755795248998,0.1176,4239.4,4239.2,0.012]
[1755795249198,0.1532,4239.3,4239.2,0.012]
[1755795249398,0.5838,4239.3,4239.2,0.012]
[1755795252360,3.11214828,4239.3,4239.2,0.012]
[1755795252559,6.11214828,4239.3,4239.2,0.012]
[1755795252729,6.11214828,4239.3,4238.8,0.02]
[1755795252730,3.66,4239.2,4238.8,0.02]
[1755795253054,0.816,4238.9,4238.8,0.02]
[1755795253672,1.2439,4238.9,4238.8,0.02]
[1755795253849,3.89919,4238.9,4238.8,0.02]
[1755795254183,6.89919,4238.9,4237.8,0.02]
[1755795254324,13.9306828,4237.9,4237.8,0.02]
[1755795254523,14.0893828,4237.9,4237.8,0.02]
[1755795254747,14.5145828,4237.9,4237.8,0.02]
[1755795254950,16.38294108,4237.9,4237.8,0.02]
[1755795256057,15.95774108,4237.9,4237.8,0.02]
[1755795256266,5.02705828,4237.9,4237.8,0.02]
[1755795256455,3.1587,4237.9,4237.8,0.02]
[1755795256646,3.0,4237.9,4237.8,0.02]
[1755795257166,3.0016,4237.9,4237.8,0.02]
[1755795257341,0.0016,4237.9,4237.8,0.02]
[1755795257843,3.0,4238.5,4237.8,0.02]
[1755795258051,1.82610828,4238.4,4237.8,0.02]
[1755795260588,1.82610828,4238.4,4237.8,0.024]
[1755795261489,1.82610828,4238.4,4237.8,0.02]
[1755795262249,0.1176,4237.9,4237.8,0.02]
[1755795262960,0.1176,4237.9,4237.8,0.3353]
[1755795263156,0.1176,4237.9,4237.8,0.8]
[1755795264050,0.1176,4237.9,4237.8,0.3353]
[1755795264255,0.1176,4237.9,4237.8,0.02]
[1755795266284,0.1176,4237.9,4237.8,0.3353]
[1755795266986,0.1176,4237.9,4237.8,0.8]
[1755795267684,0.1176,4237.9,4237.8,0.02]
[1755795271293,0.2679,4237.9,4237.8,0.02]
[1755795271481,0.7013,4237.9,4237.8,0.02]
[1755795271687,0.2679,4237.9,4237.8,0.02]
[1755795272101,0.7013,4237.9,4237.8,0.02]
[1755795273396,0.2679,4237.9,4237.8,0.02]
[1755795273604,0.1176,4237.9,4237.8,0.02]
[1755795273981,0.1176,4237.9,4237.8,0.3353]
[1755795274305,13.78547398,4239.7,4237.8,0.8]
[1755795274601,1.5600474,4239.4,4237.9,7.10895926]
[1755795274801,0.1176,4238.5,4238.0,0.48829603]
[1755795275103,0.1176,4238.5,4238.4,0.3153]
[1755795275302,0.1176,4238.5,4238.4,2.1303]
[1755795275600,0.1176,4238.5,4238.4,2.595]
[1755795276101,0.001,4239.7,4238.4,2.6185938]
[1755795276278,0.1176,4238.8,4238.4,2.1303]
[1755795276687,0.2679,4238.5,4238.4,1.815]
[1755795277100,0.2679,4238.5,4237.9,4.166]
[1755795277277,0.1176,4237.9,4237.8,1.835]
[1755795277481,0.1176,4237.9,4237.8,6.001]
[1755795277683,0.1176,4237.9,4237.8,1.835]
[1755795278073,0.1176,4237.9,4237.8,2.5879]
[1755795278883,0.1176,4237.9,4237.8,1.835]
[1755795279303,0.1176,4237.9,4237.8,1.839]
[1755795280798,0.1176,4237.9,4237.8,2.5919]
[1755795281315,0.001,4238.8,4237.8,2.61549714]
[1755795281608,0.1176,4237.9,4237.8,2.16279714]
[1755795282210,0.1176,4237.9,4237.8,2.5919]
[1755795282516,0.4605,4238.7,4237.8,1.839]
[1755795282810,0.1176,4237.9,4237.8,6.004]
[1755795283008,0.1176,4237.9,4237.8,1.839]
[1755795283178,0.1176,4237.9,4237.8,6.003]
[1755795283706,0.1176,4237.9,4237.8,6.3032]
[1755795284079,0.1176,4237.9,4237.8,1.839]
[1755795284308,0.1176,4237.9,4237.8,6.003]
[1755795284608,0.1176,4237.9,4237.8,6.7559]
[1755795285107,0.1176,4237.9,4237.8,2.5919]
[1755795285409,0.1176,4237.9,4237.8,6.003]
[1755795285410,0.244,4237.9,4237.8,6.003]
[1755795285808,0.244,4237.9,4237.8,1.839]
[1755795286112,0.7012,4237.9,4237.8,1.839]
[1755795286407,0.244,4237.9,4237.8,1.839]
[1755795287000,0.1176,4237.9,4237.8,0.024]
[1755795288282,14.36257398,4237.9,4237.8,0.024]